fUSD/lending_fUSD_20251225
["ID","MTS","AMOUNT","RATE_DAILY","PERIOD"]
[399718968,1766634656410,-518.38825095,0.00018521,2]
[399718969,1766634656420,-500.69120585,0.00018521,2]
[399718970,1766634656431,-193.07394151,0.00018521,2]
[399718971,1766634656441,-500.0,0.00018521,2]
[399718972,1766634656451,-500.0,0.00018521,2]
[399718973,1766634656461,-575.91269413,0.00018521,2]
[399718974,1766634656471,-500.70783862,0.00018521,2]
[399718975,1766634656481,-500.0,0.00018521,2]
[399718976,1766634656492,-500.0,0.00018521,2]
[399718977,1766634656503,-500.7678021,0.00018521,2]
[399718978,1766634656514,-500.86568541,0.00018521,2]
[399718979,1766634656524,-180.80560693,0.00018521,2]
[399718980,1766634656534,-500.0,0.00018521,2]
[399718981,1766634656544,-181.39311397,0.00018521,2]
[399718982,1766634656555,-500.73923118,0.00018521,2]
[399718983,1766634656566,-500.0,0.00018521,2]
[399718984,1766634656577,-500.0,0.00018521,2]
[399718985,1766634656586,-500.61413144,0.00018521,2]
[399718986,1766634656596,-500.0,0.00018521,2]
[399718987,1766634656606,-500.80128753,0.00018521,2]
[399718988,1766634656616,-500.0,0.00018521,2]
[399718989,1766634656626,-500.0,0.00018521,2]
[399718990,1766634656636,-500.0,0.00018521,2]
[399718991,1766634656646,-500.0,0.00018521,2]
[399718992,1766634656657,-500.0,0.00018521,2]
[399718993,1766634656666,-567.05895294,0.00018521,2]
[399718994,1766634656677,-501.09702076,0.00018521,2]
[399718995,1766634656686,-500.0,0.00018521,2]
[399718996,1766634656696,-501.07737956,0.00018521,2]
[399718997,1766634656707,-500.0,0.00018521,2]
[399718998,1766634656716,-500.0,0.00018521,2]
[399718999,1766634656726,-578.35760391,0.00018521,2]
[399719000,1766634656736,-2000.0,0.00018616,2]
[399719001,1766634656747,-1504.14197348,0.00018616,2]
[399719002,1766634656758,-238.0,0.00018747,2]
[399719003,1766634656768,-151.02,0.000188,2]
[399719004,1766634656778,-151.02,0.000188,2]
[399719005,1766634656788,-151.02,0.000188,2]
[399719006,1766634656798,-151.02,0.000188,2]
[399719007,1766634656808,-151.02,0.000188,2]
[399719008,1766634656818,-151.02,0.000188,2]
[399719009,1766634656828,-200.0,0.00018912,2]
[399719010,1766634656838,-646.31587738,0.00019,2]
[399719011,1766634656848,-300.0,0.00019,2]
[399719012,1766634656857,-1409.08096258,0.00019,2]
[399719013,1766634656868,-1907.1,0.00019001,2]
[399719014,1766634656878,-1596.46148567,0.00019164,2]
[399719015,1766634656889,-1800.54,0.00019178,2]
[399719016,1766634656899,-1613.0,0.0001934,2]
[399719017,1766634656909,-200.0,0.0001946,2]
[399719018,1766634656918,-1405.0,0.00019486,2]
[399719019,1766634656929,-2093.0,0.0001955,2]
[399719020,1766634656939,-1000.0,0.00019846,2]
[399719021,1766634656949,-5000.01301592,0.0002,2]
[399719022,1766634656959,-8300.0,0.0002,4]
[399719023,1766634656969,-304.57472841,0.00020008,2]
[399719024,1766634656979,-1000.0,0.00020187,2]
[399719025,1766634656991,-300.0,0.00020672,2]
[399719026,1766634657002,-46528.760407,0.00020673,2]
[399719027,1766634657015,-500.0,0.0002074,2]
[399719028,1766634657026,-1907.1,0.00020819,2]
[399719029,1766634657037,-350.0,0.00021,2]
[399719030,1766634657047,-2258.0,0.00021228,2]
[399719031,1766634657058,-10381.9697611,0.000215,2]
[399719032,1766634657068,-259.69,0.000219,7]
[399719033,1766634657078,-5000.0,0.00021918,2]
[399719034,1766634657088,-205.44860895,0.00021918,2]
[399719035,1766634657099,-300.0,0.00021999,2]
[399719036,1766634657109,-170.79,0.00022,7]
[399719037,1766634657119,-29657.05,0.00022,7]
[399719038,1766634657130,-850.46,0.000225,7]
[399719039,1766634657140,-169.91339502,0.000226,2]
[399719040,1766634657150,-1907.1,0.00022637,2]
[399719041,1766634657160,-152.3404577,0.00022978,2]
[399719042,1766634657170,-400.0,0.00023,2]
[399719043,1766634657180,-620.0,0.00023297,2]
[399719044,1766634657191,-250.0,0.00023297,2]
[399719045,1766634657201,-250.0,0.00023297,2]
[399719046,1766634657211,-250.0,0.00023297,2]
[399719047,1766634657221,-250.0,0.00023297,2]
[399719048,1766634657231,-500.0,0.00023297,2]
[399719049,1766634657242,-250.0,0.00023297,2]
[399719050,1766634657253,-500.0,0.00023297,2]
[399719051,1766634657262,-250.0,0.00023297,2]
[399719052,1766634657272,-250.0,0.00023297,2]
[399719053,1766634657283,-200.0,0.00023297,2]
[399719054,1766634657293,-500.0,0.00023297,2]
[399719055,1766634657303,-250.0,0.00023297,2]
[399719056,1766634657315,-250.0,0.00023297,2]
[399719057,1766634657326,-207.4,0.00023297,2]
[399719058,1766634657337,-250.0,0.00023297,2]
[399719059,1766634657347,-500.0,0.00023297,2]
[399719060,1766634657356,-250.0,0.00023297,2]
[399719061,1766634657367,-215.0738,0.00023297,2]
[399719062,1766634657377,-250.0,0.00023297,2]
[399719063,1766634657388,-500.0,0.00023297,2]
[399719064,1766634657398,-223.0315306,0.00023297,2]
[399719065,1766634657408,-250.0,0.00023297,2]
[399719066,1766634657418,-250.0,0.00023297,2]
[399719067,1766634657429,-500.0,0.00023297,2]
[399719068,1766634657439,-250.0,0.00023297,2]
[399719069,1766634657451,-231.28369723,0.00023297,2]
[399719070,1766634657462,-250.0,0.00023297,2]
[399719071,1766634657472,-500.0,0.00023297,2]
[399719072,1766634657482,-250.0,0.00023297,2]
[399719073,1766634657493,-239.84119403,0.00023297,2]
[399719074,1766634657502,-250.0,0.00023297,2]
[399719075,1766634657513,-500.0,0.00023297,2]
[399719076,1766634657523,-248.71531821,0.00023297,2]
[399719077,1766634657533,-250.0,0.00023297,2]
[399719078,1766634657544,-500.0,0.00023297,2]
[399719079,1766634657554,-257.91778498,0.00023297,2]
[399719080,1766634657564,-250.0,0.00023297,2]
[399719081,1766634657574,-500.0,0.00023297,2]
[399719082,1766634657584,-267.46074303,0.00023297,2]
[399719083,1766634657595,-250.0,0.00023297,2]
[399719084,1766634657605,-500.0,0.00023297,2]
[399719085,1766634657615,-277.35679052,0.00023297,2]
[399719086,1766634657625,-250.0,0.00023297,2]
[399719087,1766634657635,-500.0,0.00023297,2]
[399719088,1766634657646,-500.0,0.00023297,2]
[399719089,1766634657656,-500.0,0.00023297,2]
[399719090,1766634657667,-500.0,0.00023297,2]
[399719091,1766634657677,-500.0,0.00023297,2]
[399719092,1766634657687,-500.0,0.00023297,2]
[399719093,1766634657697,-500.0,0.00023297,2]
[399719094,1766634657707,-500.0,0.00023297,2]
[399719095,1766634657718,-500.0,0.00023297,2]
[399719096,1766634657729,-500.0,0.00023297,2]
[399719097,1766634657740,-250.0,0.00023297,2]
[399719098,1766634657751,-250.0,0.00023297,2]
[399719099,1766634657763,-500.0,0.00023297,2]
[399719100,1766634657774,-250.0,0.00023297,2]
[399719101,1766634657784,-250.0,0.00023297,2]
[399719102,1766634657795,-250.0,0.00023297,2]
[399719103,1766634657806,-250.0,0.00023297,2]
[399719104,1766634657818,-322.6107,0.00023297,2]
[399719105,1766634657828,-250.0,0.00023297,2]
[399719106,1766634657839,-250.0,0.00023297,2]
[399719107,1766634657849,-250.0,0.00023297,2]
[399719108,1766634657860,-250.0,0.00023297,2]
[399719109,1766634657870,-250.0,0.00023297,2]
[399719110,1766634657881,-250.0,0.00023297,2]
[399719111,1766634657891,-250.0,0.00023297,2]
[399719112,1766634657901,-250.0,0.00023297,2]
[399719113,1766634657911,-250.0,0.00023297,2]
[399719114,1766634657921,-303.3741437,0.00023297,2]
[399719115,1766634657930,-250.0,0.00023297,2]
[399719116,1766634657940,-250.0,0.00023297,2]
[399719117,1766634657950,-282.85294632,0.00023297,2]
[399719118,1766634657960,-1500.0,0.00023297,2]
[399719119,1766634657973,-1500.0,0.00023297,2]
[399719120,1766634657983,-1500.0,0.00023297,2]
[399719121,1766634657993,-1500.0,0.00023297,2]
[399719122,1766634658005,-1500.0,0.00023297,2]
[399719123,1766634658017,-1015.39267243,0.00023297,2]
[399719124,1766634658027,-1555.5,0.00023297,2]
[399719125,1766634658037,-1500.0,0.00023297,2]
[399719126,1766634658050,-1500.0,0.00023297,2]
[399719127,1766634658060,-1500.0,0.00023297,2]
[399719128,1766634658071,-1500.0,0.00023297,2]
[399719129,1766634658081,-1500.0,0.00023297,2]
[399719130,1766634658092,-1500.0,0.00023297,2]
[399719131,1766634658102,-3162.0,0.000233,2]
[399719132,1766634658112,-300.0,0.00023778,2]
[399719133,1766634658123,-253.42791538,0.00024,2]
[399719134,1766634658133,-21000.0,0.00024,30]
[399719135,1766634658143,-166.97621678,0.0002419,4]
[399719136,1766634658153,-64995.0,0.000242,2]
[399719137,1766634658163,-454.09263225,0.00024264,2]
[399719138,1766634658174,-1907.1,0.00024455,2]
[399719139,1766634658184,-720.0,0.00024658,7]
[399719140,1766634658194,-1000.0,0.00024658,2]
[399719141,1766634658203,-500.0,0.00024658,2]
[399719142,1766634658213,-620.0,0.00024666,2]
[399719143,1766634658223,-287.61899177,0.00024666,2]
[399719144,1766634658234,-334.5472959,0.00024666,2]
[399719145,1766634658244,-29657.05,0.000248,7]
[399719146,1766634658254,-334447.80995,0.000248,3]
[399719147,1766634658264,-5526.0,0.000248,3]
[399719148,1766634658274,-373.02319956,0.00024831,2]
[399719149,1766634658284,-151.0,0.00024897,7]
[399719150,1766634658295,-151.0,0.000249,7]
[399719151,1766634658374,-151.0,0.000249,7]
[399719152,1766634658384,-152.708763,0.000249,7]
[399719153,1766634658395,-581169.894476,0.000249,3]
[399719154,1766634658405,-153.349905,0.000249,7]
[399719155,1766634658414,-153.471607,0.000249,7]
[399719156,1766634658423,-151.0,0.000249,7]
[399719157,1766634658435,-450.0,0.00025,2]
[399719158,1766634658446,-5798.77708508,0.00025,2]
[399719159,1766634658455,-169.9398052,0.00025,5]
[399719160,1766634658466,-530.0,0.00025315,2]
[399719161,1766634658475,-5526.0,0.000254,5]
[399719162,1766634658486,-2832.0,0.00025575,2]
[399719163,1766634658495,-1000.0,0.0002562,2]
[399719164,1766634658506,-2000.0,0.000258,2]
[399719165,1766634658516,-4499.39860728,0.00026,2]
[399719166,1766634658525,-779.07,0.00026,14]
[399719167,1766634658535,-298.26089446,0.00026035,2]
[399719168,1766634658545,-346.92554585,0.00026035,2]
[399719169,1766634658555,-667.76,0.00026244,30]
[399719170,1766634658566,-1907.1,0.00026273,2]
[399719171,1766634658576,-27344.30538545,0.000264,2]
[399719172,1766634658586,-1000.0,0.00026676,2]
[399719173,1766634658595,-500.0,0.00027,2]
[399719174,1766634658605,-180.0,0.00027159,7]
[399719175,1766634658615,-150.0,0.00027369,2]
[399719176,1766634658624,-4089.85640552,0.0002739,2]
[399719177,1766634658634,-8079.47086046,0.0002739,2]
[399719178,1766634658643,-484.4565372,0.00027397,7]
[399719179,1766634658653,-150.0,0.00027397,7]
[399719180,1766634658662,-300.0,0.00027397,2]
[399719181,1766634658672,-876.42,0.00027397,16]
[399719182,1766634658681,-500.0,0.00027397,20]
[399719183,1766634658691,-29657.05,0.000274,7]
[399719184,1766634658701,-309.29654756,0.00027404,2]
[399719185,1766634658710,-359.76179104,0.00027404,2]
[399719186,1766634658720,-180.0,0.00027411,2]
[399719187,1766634658729,-200.10967967,0.000275,2]
[399719188,1766634658739,-546.65413557,0.000275,2]
[399719189,1766634658749,-220.70649537,0.00027566,30]
[399719190,1766634658758,-11555.64,0.00027671,2]
[399719191,1766634658768,-180.0,0.00027937,2]
[399719192,1766634658778,-180.0,0.00027974,2]
[399719193,1766634658787,-180.0,0.0002799,2]
[399719194,1766634658796,-70961.4371942,0.00028,2]
[399719195,1766634658806,-50600.92691763,0.00028,2]
[399719196,1766634658817,-5266.06639158,0.00028,60]
[399719197,1766634658827,-1883.0,0.00028059,2]
[399719198,1766634658836,-1907.1,0.00028091,2]
[399719199,1766634658846,-180.0,0.00028202,2]
[399719200,1766634658855,-180.0,0.0002823,2]
[399719201,1766634658865,-2000.0,0.00028263,120]
[399719202,1766634658875,-2000.0,0.00028263,120]
[399719203,1766634658885,-2000.0,0.00028263,120]
[399719204,1766634658894,-1000.0,0.00028263,30]
[399719205,1766634658904,-1000.0,0.00028263,30]
[399719206,1766634658913,-180.0,0.00028282,2]
[399719207,1766634658924,-169.91339502,0.00028393,30]
[399719208,1766634658933,-180.0,0.00028519,2]
[399719209,1766634658943,-1883.0,0.00028572,2]
[399719210,1766634658952,-180.0,0.00028633,2]
[399719211,1766634658963,-320.74051982,0.00028773,2]
[399719212,1766634658973,-151.17049055,0.00028773,2]
[399719213,1766634658985,-2278.0,0.00028785,7]
[399719214,1766634658995,-209.0,0.0002882,30]
[399719215,1766634659010,-2278.0,0.00028874,2]
[399719216,1766634659020,-29657.05,0.000289,7]
[399719217,1766634659032,-180.0,0.00028907,7]
[399719218,1766634659043,-180.0,0.0002892,2]
[399719219,1766634659053,-1883.0,0.00028938,2]
[399719220,1766634659064,-180.0,0.0002895,2]
[399719221,1766634659075,-1883.0,0.00028958,7]
[399719222,1766634659085,-1883.0,0.00028963,2]
[399719223,1766634659096,-550.0,0.00029,2]
[399719224,1766634659107,-180.0,0.00029102,2]
[399719225,1766634659117,-1883.0,0.00029159,2]
[399719226,1766634659127,-2278.0,0.00029469,2]
[399719227,1766634659137,-47767.53540534,0.000295,120]
[399719228,1766634659148,-2000.0,0.000295,2]
[399719229,1766634659158,-2280.0,0.00029619,2]
[399719230,1766634659168,-180.0,0.00029665,2]
[399719231,1766634659177,-901.5,0.00029783,10]
[399719232,1766634659187,-1907.1,0.0002991,2]
[399719233,1766634659196,-152.0,0.0002998,3]
[399719234,1766634659206,-152.0,0.0002998,3]
[399719235,1766634659216,-152.0,0.0002998,3]
[399719236,1766634659226,-152.0,0.0002998,3]
[399719237,1766634659236,-152.0,0.0002998,3]
[399719238,1766634659245,-1256.0,0.0002998,3]
[399719239,1766634659255,-152.0,0.0002998,3]
[399719240,1766634659265,-152.0,0.0002998,3]
[399719241,1766634659274,-1256.0,0.0002998,3]
[399719242,1766634659284,-152.0,0.0002998,3]
[399719243,1766634659294,-152.0,0.0002998,3]
[399719244,1766634659303,-1256.0,0.0002998,3]
[399719245,1766634659313,-152.0,0.0002998,3]
[399719246,1766634659323,-152.0,0.0002998,3]
[399719247,1766634659333,-1256.0,0.0002998,3]
[399719248,1766634659342,-152.0,0.0002998,3]
[399719249,1766634659352,-152.0,0.0002998,3]
[399719250,1766634659361,-1256.0,0.0002998,3]
[399719251,1766634659371,-152.0,0.0002998,3]
[399719252,1766634659381,-152.0,0.0002998,3]
[399719253,1766634659391,-1256.0,0.0002998,3]
[399719254,1766634659400,-152.0,0.0002998,3]
[399719255,1766634659410,-152.0,0.0002998,3]
[399719256,1766634659420,-1256.0,0.0002998,3]
[399719257,1766634659430,-152.0,0.0002998,3]
[399719258,1766634659439,-152.0,0.0002998,3]
[399719259,1766634659450,-152.0,0.0002998,3]
[399719260,1766634659459,-152.0,0.0002998,3]
[399719261,1766634659469,-1256.0,0.0002998,3]
[399719262,1766634659479,-152.0,0.0002998,3]
[399719263,1766634659488,-152.0,0.0002998,3]
[399719264,1766634659498,-1256.0,0.0002998,3]
[399719265,1766634659507,-152.0,0.0002998,3]
[399719266,1766634659516,-152.0,0.0002998,3]
[399719267,1766634659526,-152.0,0.0002998,3]
[399719268,1766634659536,-152.0,0.0002998,3]
[399719269,1766634659545,-152.0,0.0002998,3]
[399719270,1766634659556,-152.0,0.0002998,3]
[399719271,1766634659567,-152.0,0.0002998,3]
[399719272,1766634659576,-152.0,0.0002998,3]
[399719273,1766634659585,-152.0,0.0002998,3]
[399719274,1766634659594,-152.0,0.0002998,3]
[399719275,1766634659604,-152.0,0.0002998,3]
[399719276,1766634659614,-152.0,0.0002998,3]
[399719277,1766634659623,-152.0,0.0002998,3]
[399719278,1766634659633,-152.0,0.0002998,3]
[399719279,1766634659642,-152.0,0.0002998,3]
[399719280,1766634659652,-1256.0,0.0002998,3]
[399719281,1766634659662,-152.0,0.0002998,3]
[399719282,1766634659671,-152.0,0.0002998,3]
[399719283,1766634659681,-1256.0,0.0002998,3]
[399719284,1766634659690,-152.0,0.0002998,3]
[399719285,1766634659699,-152.0,0.0002998,3]
[399719286,1766634659709,-1256.0,0.0002998,3]
[399719287,1766634659719,-152.0,0.0002998,3]
[399719288,1766634659728,-152.0,0.0002998,3]
[399719289,1766634659737,-1256.0,0.0002998,3]
[399719290,1766634659747,-152.0,0.0002998,3]
[399719291,1766634659756,-152.0,0.0002998,3]
[399719292,1766634659765,-1256.0,0.0002998,3]
[399719293,1766634659775,-152.0,0.0002998,3]
[399719294,1766634659784,-152.0,0.0002998,3]
[399719295,1766634659794,-152.0,0.0002998,3]
[399719296,1766634659803,-152.0,0.0002998,3]
[399719297,1766634659813,-1256.0,0.0002998,3]
[399719298,1766634659822,-152.0,0.0002998,3]
[399719299,1766634659832,-152.0,0.0002998,3]
[399719300,1766634659841,-1256.0,0.0002998,3]
[399719301,1766634659851,-152.0,0.0002998,3]
[399719302,1766634659861,-152.0,0.0002998,3]
[399719303,1766634659871,-1256.0,0.0002998,3]
[399719304,1766634659880,-152.0,0.0002998,3]
[399719305,1766634659890,-206.21647338,0.0002998,3]
[399719306,1766634659899,-152.0,0.0002998,3]
[399719307,1766634659909,-1256.0,0.0002998,3]
[399719308,1766634659919,-152.0,0.0002998,3]
[399719309,1766634659928,-1256.0,0.0002998,3]
[399719310,1766634659937,-152.0,0.0002998,3]
[399719311,1766634659947,-1256.0,0.0002998,3]
[399719312,1766634659957,-152.0,0.0002998,3]
[399719313,1766634659967,-1256.0,0.0002998,3]
[399719314,1766634659976,-152.0,0.0002998,3]
[399719315,1766634659986,-1256.0,0.0002998,3]
[399719316,1766634659995,-152.0,0.0002998,3]
[399719317,1766634660008,-1256.0,0.0002998,3]
[399719318,1766634660018,-152.0,0.0002998,3]
[399719319,1766634660028,-1256.0,0.0002998,3]
[399719320,1766634660038,-1256.0,0.0002998,3]
[399719321,1766634660049,-152.0,0.0002998,3]
[399719322,1766634660059,-1256.0,0.0002998,3]
[399719323,1766634660069,-152.0,0.0002998,3]
[399719324,1766634660080,-1256.0,0.0002998,3]
[399719325,1766634660090,-1256.0,0.0002998,3]
[399719326,1766634660099,-1256.0,0.0002998,3]
[399719327,1766634660109,-1256.0,0.0002998,3]
[399719328,1766634660119,-153.0,0.0002998,3]
[399719329,1766634660129,-1256.0,0.0002998,3]
[399719330,1766634660138,-153.0,0.0002998,3]
[399719331,1766634660147,-1256.0,0.0002998,3]
[399719332,1766634660158,-153.0,0.0002998,3]
[399719333,1766634660168,-1256.0,0.0002998,3]
[399719334,1766634660177,-1256.0,0.0002998,3]
[399719335,1766634660187,-1129.52601387,0.0002998,3]
[399719336,1766634660196,-560.52292834,0.0003,30]
[399719337,1766634660207,-332.60791905,0.00030142,2]
[399719338,1766634660218,-209.5,0.000305,30]
[399719339,1766634660228,-667.76,0.0003057,30]
[399719340,1766634660238,-1000.0,0.000308,30]
[399719341,1766634660249,-2597.70442042,0.0003084,2]
[399719342,1766634660259,-209.0,0.0003084,30]
[399719343,1766634660270,-78571.61931906,0.0003095,2]
[399719344,1766634660280,-1000.0,0.00031178,30]
[399719345,1766634660289,-170.45253052,0.000314,30]
[399719346,1766634660299,-19592.73934138,0.0003143,4]
[399719347,1766634660308,-166.97621678,0.0003148,6]
[399719348,1766634660319,-196.30349889,0.000315,2]
[399719349,1766634660328,-150.0,0.000315,2]
[399719350,1766634660338,-344.91441206,0.00031511,2]
[399719351,1766634660348,-1000.0,0.00031557,30]
[399719352,1766634660358,-9540.0,0.00031567,5]
[399719353,1766634660368,-35033.36,0.0003158,2]
[399719354,1766634660377,-454.09263225,0.00031628,2]
[399719355,1766634660387,-1907.1,0.00031728,2]
[399719356,1766634660397,-1000.0,0.00031936,30]
[399719357,1766634660407,-161.45083283,0.00032,30]
[399719358,1766634660416,-152.85517104,0.0003216,2]
[399719359,1766634660426,-889.2253303,0.000323,2]
[399719360,1766634660435,-1000.0,0.00032315,30]
[399719361,1766634660446,-500.0,0.00032411,2]
[399719362,1766634660455,-223.45632631,0.0003253,2]
[399719363,1766634660465,-500.0,0.00032603,2]
[399719364,1766634660474,-500.0,0.00032603,2]
[399719365,1766634660484,-150.73404556,0.00032603,2]
[399719366,1766634660495,-150.0,0.00032603,2]
[399719367,1766634660505,-150.0,0.00032603,2]
[399719368,1766634660515,-150.0,0.00032603,2]
[399719369,1766634660524,-500.0,0.00032603,2]
[399719370,1766634660534,-150.0,0.00032603,2]
[399719371,1766634660544,-150.0,0.00032603,2]
[399719372,1766634660553,-150.0,0.00032603,2]
[399719373,1766634660563,-150.0,0.00032603,2]
[399719374,1766634660573,-500.0,0.00032603,2]
[399719375,1766634660583,-150.0,0.00032603,2]
[399719376,1766634660593,-150.0,0.00032603,2]
[399719377,1766634660603,-500.0,0.00032603,2]
[399719378,1766634660613,-150.0,0.00032603,2]
[399719379,1766634660623,-150.0,0.00032603,2]
[399719380,1766634660633,-751.0,0.00032603,2]
[399719381,1766634660642,-500.0,0.00032603,2]
[399719382,1766634660652,-500.0,0.00032603,2]
[399719383,1766634660661,-150.0,0.00032603,2]
[399719384,1766634660671,-150.0,0.00032603,2]
[399719385,1766634660680,-500.0,0.00032603,2]
[399719386,1766634660690,-500.0,0.00032603,2]
[399719387,1766634660700,-152.5369494,0.00032603,2]
[399719388,1766634660709,-500.0,0.00032603,2]
[399719389,1766634660719,-500.0,0.00032603,2]
[399719390,1766634660728,-500.0,0.00032603,2]
[399719391,1766634660738,-500.0,0.00032603,2]
[399719392,1766634660747,-150.0,0.00032603,2]
[399719393,1766634660756,-500.0,0.00032603,2]
[399719394,1766634660766,-150.0,0.00032603,2]
[399719395,1766634660776,-500.0,0.00032603,2]
[399719396,1766634660786,-150.0,0.00032603,2]
[399719397,1766634660796,-500.0,0.00032603,2]
[399719398,1766634660806,-150.0,0.00032603,2]
[399719399,1766634660816,-150.0,0.00032603,2]
[399719400,1766634660826,-500.0,0.00032603,2]
[399719401,1766634660836,-500.0,0.00032603,2]
[399719402,1766634660845,-500.0,0.0003263,2]
[399719403,1766634660854,-506.1580522,0.0003263,2]
[399719404,1766634660864,-162.16080322,0.0003263,2]
[399719405,1766634660874,-150.0,0.0003263,2]
[399719406,1766634660883,-150.0,0.0003263,2]
[399719407,1766634660893,-500.0,0.0003263,2]
[399719408,1766634660903,-154.54206526,0.0003263,2]
[399719409,1766634660912,-150.0,0.0003263,2]
[399719410,1766634660922,-175.8191271,0.0003263,2]
[399719411,1766634660932,-150.0,0.0003263,2]
[399719412,1766634660941,-500.0,0.0003263,2]
[399719413,1766634660951,-166.75107501,0.0003263,2]
[399719414,1766634660961,-150.0,0.0003263,2]
[399719415,1766634660971,-500.0,0.0003263,2]
[399719416,1766634660981,-150.0,0.0003263,2]
[399719417,1766634660991,-155.31344132,0.0003263,2]
[399719418,1766634661001,-751.0,0.0003263,2]
[399719419,1766634661013,-500.0,0.0003263,2]
[399719420,1766634661022,-507.91503303,0.0003263,2]
[399719421,1766634661032,-150.0,0.0003263,2]
[399719422,1766634661043,-150.0,0.0003263,2]
[399719423,1766634661053,-500.0,0.0003263,2]
[399719424,1766634661063,-500.0,0.0003263,2]
[399719425,1766634661073,-500.0,0.0003263,2]
[399719426,1766634661085,-512.64078533,0.0003263,2]
[399719427,1766634661095,-500.0,0.0003263,2]
[399719428,1766634661105,-500.0,0.0003263,2]
[399719429,1766634661114,-150.0,0.0003263,2]
[399719430,1766634661123,-500.0,0.0003263,2]
[399719431,1766634661133,-150.0,0.0003263,2]
[399719432,1766634661143,-503.48304649,0.0003263,2]
[399719433,1766634661153,-150.0,0.0003263,2]
[399719434,1766634661162,-523.10310192,0.0003263,2]
[399719435,1766634661173,-500.0,0.0003263,2]
[399719436,1766634661182,-500.0,0.0003263,2]
[399719437,1766634661191,-500.0,0.00032658,2]
[399719438,1766634661201,-157.68957014,0.00032658,2]
[399719439,1766634661211,-232.31596184,0.00032658,2]
[399719440,1766634661221,-310.19111312,0.00032658,2]
[399719441,1766634661230,-150.0,0.00032658,2]
[399719442,1766634661239,-282.19614538,0.00032658,2]
[399719443,1766634661249,-168.55832196,0.00032658,2]
[399719444,1766634661259,-351.75948857,0.00032658,2]
[399719445,1766634661270,-150.0,0.00032658,2]
[399719446,1766634661280,-751.0,0.00032658,2]
[399719447,1766634661290,-500.0,0.00032658,2]
[399719448,1766634661299,-203.93761826,0.00032658,2]
[399719449,1766634661309,-150.0,0.00032658,2]
[399719450,1766634661319,-500.0,0.00032658,2]
[399719451,1766634661328,-500.0,0.00032658,2]
[399719452,1766634661337,-500.0,0.00032658,2]
[399719453,1766634661347,-500.0,0.00032658,2]
[399719454,1766634661357,-162.00371102,0.00032658,2]
[399719455,1766634661367,-500.0,0.00032658,2]
[399719456,1766634661376,-150.0,0.00032658,2]
[399719457,1766634661387,-167.82104978,0.00032658,2]
[399719458,1766634661396,-203.40640868,0.00032658,2]
[399719459,1766634661406,-500.0,0.00032658,2]
[399719460,1766634661416,-500.0,0.00032658,2]
[399719461,1766634661425,-500.0,0.00032685,2]
[399719462,1766634661435,-150.0,0.00032685,2]
[399719463,1766634661444,-150.0,0.00032685,2]
[399719464,1766634661454,-751.0,0.00032685,2]
[399719465,1766634661463,-500.0,0.00032685,2]
[399719466,1766634661473,-161.85756693,0.00032685,2]
[399719467,1766634661483,-500.0,0.00032685,2]